bitfinex/quotes_BTCUSD_20241130
["timestamp","ask_amount","ask_price","bid_price","bid_amount"]
[1732930568778,0.00460314,96910.0,96909.0,0.12584521]
[1732930568979,0.00460314,96910.0,96909.0,0.13084521]
[1732930569189,0.00460314,96910.0,96909.0,0.13484521]
[1732930569368,0.00460314,96910.0,96909.0,0.25447976]
[1732930569576,0.206372,96913.0,96909.0,0.25447976]
[1732930569577,0.206354,96921.0,96910.0,0.023]
[1732930569768,0.103187,96911.0,96910.0,0.023]
[1732930569985,0.206365,96916.0,96910.0,0.11176165]
[1732930570197,0.103187,96911.0,96910.0,0.023]
[1732930570406,0.103187,96911.0,96910.0,0.11175921]
[1732930570773,0.103187,96911.0,96910.0,0.11275921]
[1732930571073,0.206347,96924.0,96910.0,0.11775665]
[1732930571285,0.103187,96911.0,96910.0,0.028]
[1732930571462,0.103187,96911.0,96910.0,0.1197593]
[1732930571900,0.103187,96911.0,96910.0,0.1147593]
[1732930572109,0.103187,96911.0,96910.0,0.1117593]
[1732930573945,0.103187,96911.0,96910.0,0.1197593]
[1732930576613,0.103187,96911.0,96910.0,0.0967593]
[1732930576844,0.185887,96911.0,96910.0,0.0967593]
[1732930577303,0.206363,96917.0,96910.0,0.0967593]
[1732930577556,0.103187,96911.0,96910.0,0.06587786]
[1732930577768,0.103187,96911.0,96910.0,0.03886444]
[1732930577917,0.103187,96911.0,96910.0,0.09673485]
[1732930578123,0.103187,96911.0,96910.0,0.09173485]
[1732930578327,0.103185,96913.0,96910.0,0.08873485]
[1732930578529,0.103186,96912.0,96911.0,0.08873485]
[1732930580898,0.103186,96912.0,96911.0,0.09273485]
[1732930581098,0.103186,96912.0,96911.0,0.09573485]
[1732930581595,0.10777412,96912.0,96911.0,0.09573485]
[1732930582032,0.00458812,96912.0,96911.0,0.11873485]
[1732930582460,0.00228293,96920.0,96912.0,0.103186]
[1732930582689,0.00228293,96920.0,96913.0,0.05787041]
[1732930582923,0.00314823,96920.0,96915.0,0.103182]
[1732930583135,0.206357,96919.0,96916.0,0.08873485]
[1732930583341,0.103181,96917.0,96913.0,0.103185]
[1732930583575,0.103181,96917.0,96914.0,0.088759]
[1732930583830,0.103181,96917.0,96915.0,0.088759]
[1732930584061,0.103181,96917.0,96916.0,0.088759]
[1732930584520,0.103181,96917.0,96916.0,0.08877408]
[1732930586177,0.412721,96917.0,96916.0,0.08877408]
[1732930586587,0.412721,96917.0,96916.0,0.09277408]
[1732930586807,0.412721,96917.0,96916.0,0.09877408]
[1732930587238,0.30954,96917.0,96916.0,0.09877408]
[1732930587388,0.30954,96917.0,96916.0,0.32780129]
[1732930587655,0.26308155,96917.0,96916.0,0.32780129]
[1732930588433,0.26308155,96917.0,96916.0,0.29692335]
[1732930588746,0.26308155,96917.0,96916.0,0.25836205]
[1732930588973,0.26308155,96917.0,96916.0,0.29703174]
[1732930589180,0.26308155,96917.0,96916.0,0.32796749]
[1732930589403,0.26308155,96917.0,96916.0,0.32396749]
[1732930589610,0.26308155,96917.0,96916.0,0.32196749]
[1732930589921,0.26308155,96917.0,96916.0,0.32896749]
[1732930590137,0.26308155,96917.0,96916.0,0.59576749]
[1732930590348,0.26308155,96917.0,96916.0,0.6027329]
[1732930590349,0.19856472,96917.0,96916.0,0.6027329]
[1732930590579,0.19856472,96917.0,96916.0,0.6177329]
[1732930590803,0.19856472,96917.0,96916.0,0.6107329]
[1732930591024,0.19856472,96917.0,96916.0,0.6147329]
[1732930591259,0.19856472,96917.0,96916.0,0.6207329]
[1732930591495,0.19856472,96917.0,96916.0,0.6117329]
[1732930592449,0.19856472,96917.0,96916.0,0.6057329]
[1732930592676,0.19856472,96917.0,96916.0,0.60560955]
[1732930592865,0.19856472,96917.0,96916.0,0.62160955]
[1732930593129,0.19856472,96917.0,96916.0,0.32480955]
[1732930593340,0.20320893,96917.0,96916.0,0.09578234]
[1732930593553,0.20320893,96917.0,96916.0,0.10478234]
[1732930593807,0.20320893,96917.0,96916.0,0.20796434]
[1732930594268,0.20320893,96917.0,96916.0,0.19196434]
[1732930594494,0.20320893,96917.0,96916.0,0.19596434]
[1732930594739,0.20320893,96917.0,96916.0,0.20296434]
[1732930595419,0.20320893,96917.0,96916.0,0.32880955]
[1732930595874,0.19856472,96917.0,96916.0,0.32480955]
[1732930596114,0.19856472,96917.0,96916.0,0.09051314]
[1732930596323,0.30725544,96917.0,96916.0,0.09951314]
[1732930596541,0.30725544,96917.0,96916.0,0.09751314]
[1732930596959,0.30725544,96917.0,96916.0,0.09851314]
[1732930597168,0.30725544,96917.0,96916.0,0.09051314]
[1732930597408,0.30725544,96917.0,96916.0,0.09451314]
[1732930597614,0.30725544,96917.0,96916.0,0.09851314]
[1732930597875,0.30725544,96917.0,96916.0,0.09451314]
[1732930598082,0.30725544,96917.0,96916.0,0.12540138]
[1732930598292,0.30725544,96917.0,96916.0,0.09451314]
[1732930598717,0.30725544,96917.0,96916.0,0.09051314]
[1732930598957,0.30725544,96917.0,96916.0,0.09251314]
[1732930599878,0.30725544,96917.0,96916.0,0.09551314]
[1732930600533,0.30725544,96917.0,96916.0,0.12640138]
[1732930600741,0.30725544,96917.0,96916.0,0.09551314]
[1732930602028,0.30725544,96917.0,96916.0,0.0067308]
[1732930602251,0.30725544,96917.0,96916.0,0.09553377]
[1732930602904,0.30725544,96917.0,96916.0,0.12642176]
[1732930603170,0.30725544,96917.0,96916.0,0.12442176]
[1732930603396,0.30725544,96917.0,96916.0,0.09553377]
[1732930603621,0.30725544,96917.0,96916.0,0.09253377]
[1732930604071,0.30725544,96917.0,96916.0,0.09553377]
[1732930604691,0.30725544,96917.0,96916.0,0.12442176]
[1732930605089,0.30725544,96917.0,96916.0,0.12742176]
[1732930607747,0.30725544,96917.0,96916.0,0.09653377]
[1732930608380,0.30261112,96917.0,96916.0,0.09653377]
[1732930608983,0.30261112,96917.0,96916.0,0.0965282]
[1732930612340,0.30261112,96917.0,96916.0,0.09652451]
[1732930613379,0.19943012,96917.0,96916.0,0.11952451]
[1732930613596,0.19943012,96917.0,96916.0,0.22270651]
[1732930613795,0.19943012,96917.0,96916.0,0.19970651]
[1732930614254,0.19943012,96917.0,96916.0,0.19370651]
[1732930614485,0.19943012,96917.0,96916.0,0.19670651]
[1732930614746,0.19943012,96917.0,96916.0,0.19970651]
[1732930614969,0.19943012,96917.0,96916.0,0.19670651]
[1732930615203,0.19943012,96917.0,96916.0,0.1079128]
[1732930615391,0.19943012,96917.0,96916.0,0.19370191]
[1732930615664,0.19943012,96917.0,96916.0,0.24636197]
[1732930615894,0.19943012,96917.0,96916.0,0.30354727]
[1732930618894,0.19943012,96917.0,96916.0,0.30054727]
[1732930619068,0.19943012,96917.0,96916.0,0.29954483]
[1732930619276,0.19943012,96917.0,96916.0,0.38833165]
[1732930620223,0.19943012,96917.0,96916.0,0.28214965]
[1732930620445,0.30261112,96917.0,96916.0,0.29014965]
[1732930620668,0.19943012,96917.0,96916.0,0.29514965]
[1732930620903,0.30261112,96917.0,96916.0,0.29514965]
[1732930622456,0.19943012,96917.0,96916.0,0.29514965]
[1732930622905,0.30261112,96917.0,96916.0,0.29514965]
[1732930624132,0.19943012,96917.0,96916.0,0.29514965]
[1732930624346,0.19916826,96917.0,96916.0,0.29514965]
[1732930627204,0.19916826,96917.0,96916.0,0.48103165]
[1732930627462,0.1527102,96917.0,96916.0,0.50403165]
[1732930627640,0.1527102,96917.0,96916.0,0.31814965]
[1732930627853,0.2558912,96917.0,96916.0,0.19230444]
[1732930628056,0.2558912,96917.0,96916.0,0.18730444]
[1732930628256,0.2558912,96917.0,96916.0,0.18430444]
[1732930628479,0.2558912,96917.0,96916.0,0.19230444]
[1732930628906,0.2558912,96917.0,96916.0,0.10351762]
[1732930629783,0.2558912,96917.0,96916.0,0.09051762]
[1732930630023,0.2558912,96917.0,96916.0,0.10351762]
[1732930630253,0.2558912,96917.0,96916.0,0.09551762]
[1732930630462,0.2558912,96917.0,96916.0,0.09051762]
[1732930630696,0.2558912,96917.0,96916.0,0.09851762]
[1732930630987,0.2558912,96917.0,96916.0,0.10351762]
[1732930631211,0.3011912,96917.0,96916.0,0.10351762]
[1732930631862,0.3011912,96917.0,96916.0,0.09851762]
[1732930632954,0.3011912,96917.0,96916.0,0.10051762]
[1732930633174,0.3011912,96917.0,96916.0,0.09051762]
[1732930633860,0.3011912,96917.0,96916.0,0.09065046]
[1732930638426,0.3011912,96917.0,96916.0,0.09032338]
[1732930638908,0.3011912,96917.0,96916.0,0.12113821]
[1732930639540,0.2558912,96917.0,96916.0,0.0017308]
[1732930639755,0.2558912,96917.0,96916.0,0.09031857]
[1732930640190,0.2558912,96917.0,96916.0,0.12113173]
[1732930640399,0.2558912,96917.0,96916.0,0.09031857]
[1732930643021,0.2558912,96917.0,96916.0,0.12113015]
[1732930643232,0.2558912,96917.0,96916.0,0.12213015]
[1732930643968,0.2558912,96917.0,96916.0,0.09131857]
[1732930648346,0.2558912,96917.0,96916.0,0.09031857]
[1732930649777,0.2558912,96917.0,96916.0,0.09033002]
[1732930650177,0.2558912,96917.0,96916.0,0.05180861]
[1732930651012,0.2558912,96917.0,96916.0,0.03254792]
[1732930651217,0.2558912,96917.0,96916.0,0.0017308]
[1732930652183,0.4058912,96917.0,96916.0,0.0017308]
[1732930653920,0.4058912,96917.0,96916.0,0.09034428]
[1732930658085,0.2558912,96917.0,96916.0,0.09034428]
[1732930660378,0.2558912,96917.0,96916.0,0.09134428]
[1732930660808,0.2558912,96917.0,96916.0,0.09234428]
[1732930662069,0.2558912,96917.0,96916.0,0.09434428]
[1732930663196,0.2558912,96917.0,96916.0,0.09437936]
[1732930663960,0.1527102,96917.0,96916.0,0.09437936]
[1732930664209,0.1527102,96917.0,96916.0,0.19722457]
[1732930664601,0.2558912,96917.0,96916.0,0.19722457]
[1732930665178,0.25570202,96917.0,96916.0,0.19722457]
[1732930665391,0.15252102,96917.0,96916.0,0.19722457]
[1732930665618,0.15252102,96917.0,96916.0,0.19522457]
[1732930665802,0.15252102,96917.0,96916.0,0.19722457]
[1732930666003,0.25570202,96917.0,96916.0,0.19722457]
[1732930666174,0.15252102,96917.0,96916.0,0.19522457]
[1732930666382,0.15252102,96917.0,96916.0,0.20222457]
[1732930666591,0.15252102,96917.0,96916.0,0.11357601]
[1732930666962,0.15252102,96917.0,96916.0,0.20017408]
[1732930667155,0.25570202,96917.0,96916.0,0.20317408]
[1732930669145,0.15252102,96917.0,96916.0,0.20317408]
[1732930669279,0.25570202,96917.0,96916.0,0.20317408]
[1732930669489,0.25570202,96917.0,96916.0,0.20314077]
[1732930669885,0.25570202,96917.0,96916.0,0.10029556]
[1732930670331,0.15252102,96917.0,96916.0,0.10029556]
[1732930670991,0.15252102,96917.0,96916.0,0.20347756]
[1732930671207,0.15252102,96917.0,96916.0,0.10029556]
[1732930671421,0.1060629,96917.0,96916.0,0.10029556]
[1732930671652,0.1060629,96917.0,96916.0,0.11393934]
[1732930672133,0.1060629,96917.0,96916.0,0.11093934]
[1732930672346,0.1060629,96917.0,96916.0,0.21412134]
[1732930672557,0.1060629,96917.0,96916.0,0.12193934]
[1732930673229,0.1060629,96917.0,96916.0,0.22512134]
[1732930674240,0.2092439,96917.0,96916.0,0.12193934]
[1732930674651,0.2092439,96917.0,96916.0,0.10129556]
[1732930674864,0.2092439,96917.0,96916.0,0.12493326]
[1732930674865,0.4880269,96917.0,96916.0,0.12493326]
[1732930675069,0.4857439,96917.0,96916.0,0.09429556]
[1732930675272,0.49689505,96917.0,96916.0,0.10229556]
[1732930675524,0.50151865,96917.0,96916.0,0.06378913]
[1732930675966,0.50151865,96917.0,96916.0,0.05178913]
[1732930676612,0.50151865,96917.0,96916.0,0.05678913]
[1732930677065,0.50151865,96917.0,96916.0,0.05178913]
[1732930680051,0.60436386,96917.0,96916.0,0.05178913]
[1732930680189,0.60436386,96917.0,96916.0,0.0017308]
[1732930680413,0.60436386,96917.0,96916.0,0.05148736]
[1732930680741,0.60436386,96917.0,96916.0,0.02086793]
[1732930681734,0.4435675,96917.0,96916.0,0.05148316]
[1732930681909,0.2935675,96917.0,96916.0,0.05148316]
[1732930682521,0.2935675,96917.0,96916.0,0.0017308]
[1732930682788,0.2935675,96917.0,96916.0,0.0514771]
[1732930684551,0.4435675,96917.0,96916.0,0.0514771]
[1732930686052,0.54641271,96917.0,96916.0,0.0514771]
[1732930686274,0.59181271,96917.0,96916.0,0.0514771]
[1732930688206,0.59181271,96917.0,96916.0,0.02086398]
[1732930689651,0.59181271,96917.0,96916.0,0.0017308]
[1732930689855,0.59181271,96917.0,96916.0,0.02085581]
[1732930690083,0.273187,96911.0,96910.0,0.0017306]
[1732930690210,0.56012971,96911.0,96910.0,0.0017306]
[1732930690423,0.61306737,96911.0,96910.0,0.0017306]
[1732930692042,0.61406737,96911.0,96910.0,0.0027306]
[1732930696555,0.60406737,96911.0,96910.0,0.0027306]
[1732930696760,0.61406737,96911.0,96910.0,0.0027306]
[1732930698694,0.54566737,96911.0,96910.0,0.0027306]
[1732930698911,0.46676737,96911.0,96910.0,0.0027306]
[1732930699648,0.31222971,96911.0,96910.0,0.0027306]
[1732930699855,0.31222971,96911.0,96910.0,0.0017306]
[1732930699856,0.31122971,96911.0,96910.0,0.0017306]
[1732930700072,0.31222971,96911.0,96910.0,0.0027306]
[1732930701525,0.31222971,96911.0,96910.0,0.0017306]
[1732930701526,0.31122971,96911.0,96910.0,0.0017306]
[1732930701949,0.31222971,96911.0,96910.0,0.0017306]
[1732930702178,0.31222971,96911.0,96910.0,0.02083814]
[1732930702585,0.31222971,96911.0,96910.0,0.05142182]
[1732930704565,0.2093845,96911.0,96910.0,0.05142182]
[1732930704754,0.2093845,96911.0,96910.0,0.08969335]
[1732930705116,0.31451291,96911.0,96910.0,0.08969335]
[1732930705322,0.60057971,96911.0,96910.0,0.08969335]
[1732930705589,0.60957971,96911.0,96910.0,8.2e-07]
[1732930705752,0.402294,96904.0,96903.0,0.00017973]
[1732930705906,0.61033671,96904.0,96903.0,0.00017973]
[1732930708204,0.61633671,96904.0,96903.0,0.00117973]
[1732930708421,0.1111975,96904.0,96903.0,0.00117973]
[1732930708682,0.2143915,96904.0,96903.0,0.00117973]
[1732930709552,0.2083915,96904.0,96903.0,0.00017973]
[1732930709806,0.21967507,96904.0,96903.0,0.00117973]
[1732930710039,0.2173915,96904.0,96903.0,0.00117973]
[1732930711086,0.46123671,96904.0,96903.0,0.00017973]
[1732930711316,0.54663671,96904.0,96903.0,0.00017973]
[1732930711944,0.54963671,96904.0,96903.0,0.00017973]
[1732930712158,0.54463671,96904.0,96903.0,0.00017973]
[1732930712504,0.55863671,96904.0,96903.0,0.00017973]
[1732930714115,0.46123671,96904.0,96903.0,0.00017973]
[1732930714392,0.46623671,96904.0,96903.0,0.00117973]
[1732930714586,0.46123671,96904.0,96903.0,0.00017973]
[1732930714851,0.46123671,96904.0,96903.0,0.00291053]
[1732930715050,0.46623671,96904.0,96903.0,0.00291053]
[1732930715257,0.46123671,96904.0,96903.0,0.00191053]
[1732930716292,0.46623671,96904.0,96903.0,0.00191053]
[1732930716540,0.46623671,96904.0,96903.0,0.03235749]
[1732930716774,0.31623671,96904.0,96903.0,0.00191053]
[1732930717674,0.31123671,96904.0,96903.0,0.00191053]
[1732930717912,0.20804271,96904.0,96903.0,0.08945459]
[1732930718136,0.1081975,96904.0,96903.0,0.08945459]
[1732930718560,0.1101975,96904.0,96903.0,0.08945459]
[1732930720528,0.11470764,96904.0,96903.0,0.08945459]
[1732930720738,0.21790164,96904.0,96903.0,0.08945459]
[1732930721652,0.21665164,96904.0,96903.0,0.08945459]
[1732930724212,0.21665164,96904.0,96903.0,0.08913329]
[1732930726368,0.21655164,96904.0,96903.0,0.08913329]
[1732930726598,0.31939685,96904.0,96903.0,0.08913329]
[1732930726848,0.31939685,96904.0,96903.0,0.05104646]
[1732930727056,0.31939685,96904.0,96903.0,0.08909109]
[1732930728842,0.31939685,96904.0,96903.0,0.08882796]
[1732930730321,0.31939685,96904.0,96903.0,0.08871537]
[1732930731221,0.21655164,96904.0,96903.0,0.08871537]
[1732930731574,0.21645164,96904.0,96903.0,0.08871537]
[1732930733904,0.21645164,96904.0,96903.0,0.08871492]
[1732930735740,0.2119415,96904.0,96903.0,0.08871492]
[1732930737727,0.21422492,96904.0,96903.0,0.08871492]
[1732930738267,0.21412492,96904.0,96903.0,0.08871492]
[1732930738700,0.2118415,96904.0,96903.0,0.08871492]
[1732930739599,0.212707,96904.0,96903.0,0.08871492]
[1732930739800,0.109513,96904.0,96903.0,0.08871492]
[1732930739956,0.212707,96904.0,96903.0,0.08871492]
[1732930740176,0.109513,96904.0,96903.0,0.08871492]
[1732930740381,0.212707,96904.0,96903.0,0.08871492]
[1732930740633,0.2149903,96904.0,96903.0,0.08871492]
[1732930740817,0.212707,96904.0,96903.0,0.08871492]
[1732930741590,0.109513,96904.0,96903.0,0.08871492]
[1732930741791,0.212707,96904.0,96903.0,0.08871492]
[1732930743160,0.212707,96904.0,96903.0,0.08878014]
[1732930743810,0.212707,96904.0,96903.0,0.08879162]
[1732930744052,0.212707,96904.0,96903.0,0.0013261]
[1732930744276,0.212707,96904.0,96903.0,0.05076309]
[1732930744501,0.212707,96904.0,96903.0,0.08879162]
[1732930745376,0.109513,96904.0,96903.0,0.08879162]
[1732930745620,0.212707,96904.0,96903.0,0.08879162]
[1732930748256,0.31555221,96904.0,96903.0,0.08879162]
[1732930748467,0.32107921,96904.0,96903.0,0.08879162]
[1732930749328,0.32097921,96904.0,96903.0,0.11921544]
[1732930749546,0.32097921,96904.0,96903.0,0.08879162]
[1732930749748,0.32097921,96904.0,96903.0,0.11921544]
[1732930749964,0.32097921,96904.0,96903.0,0.08879162]
[1732930751964,0.32097921,96904.0,96903.0,0.11918877]
[1732930752895,0.32097921,96904.0,96903.0,0.08879162]
[1732930753334,0.32097921,96904.0,96903.0,0.08871839]
[1732930755943,0.32097921,96904.0,96903.0,0.1191158]
[1732930756163,0.32097921,96904.0,96903.0,0.08871839]
[1732930760189,0.32097921,96904.0,96903.0,0.08872156]
[1732930760847,0.32087921,96904.0,96903.0,0.08872156]
[1732930761879,0.11484,96904.0,96903.0,0.19191656]
[1732930762544,0.11484,96904.0,96903.0,0.08872156]
[1732930762751,0.11484,96904.0,96903.0,0.19191656]
[1732930763175,0.11484,96904.0,96903.0,0.08872156]
[1732930763512,0.11484,96904.0,96903.0,0.19191656]
[1732930763917,0.11484,96904.0,96903.0,0.08872156]
[1732930764680,0.11484,96904.0,96903.0,0.19191656]
[1732930765098,0.11484,96904.0,96903.0,0.08872156]
[1732930765512,0.11484,96904.0,96903.0,0.19191656]
[1732930766817,0.11484,96904.0,96903.0,0.08872156]
[1732930767115,0.11484,96904.0,96903.0,0.0013261]
[1732930767313,0.218034,96904.0,96903.0,0.08858505]
[1732930767492,0.11484,96904.0,96903.0,0.08858505]
[1732930767711,0.1171233,96904.0,96903.0,0.08858505]
[1732930769258,0.1171233,96904.0,96903.0,0.19178005]
[1732930769462,0.109313,96904.0,96903.0,0.19178005]
[1732930769669,0.109113,96904.0,96903.0,0.19178005]
[1732930769885,0.11540584,96904.0,96903.0,0.19178005]
[1732930771989,0.11540584,96904.0,96903.0,0.08858505]
[1732930772232,0.11768913,96904.0,96903.0,0.08858505]
[1732930773147,0.22088313,96904.0,96903.0,0.08858505]
[1732930773360,0.21859984,96904.0,96903.0,0.08858505]
[1732930773593,0.11540584,96904.0,96903.0,0.08858505]
[1732930773810,0.11540584,96904.0,96903.0,0.0013261]
[1732930773811,0.35012767,96904.0,96903.0,0.0013261]
[1732930774048,0.60964505,96904.0,96903.0,0.08859052]
[1732930774784,0.62934053,96904.0,96903.0,0.08859052]
[1732930776129,0.62434053,96904.0,96903.0,0.08859052]
[1732930776328,0.63134053,96904.0,96903.0,0.08959052]
[1732930777456,0.63134053,96904.0,96903.0,0.08956967]
[1732930777902,0.273205,96894.0,96893.0,0.00970471]
[1732930778144,0.273205,96894.0,96889.0,0.0017288]
[1732930778145,0.273209,96890.0,96889.0,0.0017288]
[1732930778384,0.47880171,96890.0,96889.0,0.0017288]
[1732930778637,0.48503881,96890.0,96889.0,0.0017288]
[1732930779304,0.103238,96863.0,96853.0,0.05877768]
[1732930779523,0.30883071,96863.0,96853.0,0.05877768]
[1732930779735,0.31494286,96863.0,96853.0,0.05877768]
[1732930780159,0.31494286,96863.0,96853.0,0.0009862]
[1732930780377,0.47494286,96863.0,96853.0,0.0009862]
[1732930780601,0.47501693,96863.0,96837.0,0.0790298]
[1732930780812,0.47501693,96863.0,96837.0,0.0800144]
[1732930781058,0.48201693,96863.0,96837.0,0.0800144]
[1732930781575,0.48001693,96863.0,96837.0,0.0800144]
[1732930781943,0.48201693,96863.0,96837.0,0.0800144]
[1732930782545,0.48701693,96863.0,96837.0,0.0800144]
[1732930784388,0.01,96861.0,96837.0,0.0027144]
[1732930784582,0.27325,96852.0,96837.0,0.0027144]
[1732930784791,0.47884271,96852.0,96837.0,0.0017298]
[1732930784960,0.48491705,96852.0,96837.0,0.0017298]
[1732930785166,0.57470686,96852.0,96837.0,0.0017298]
[1732930786109,0.58270686,96852.0,96851.0,0.0027294]
[1732930786929,0.59353239,96852.0,96851.0,0.0027294]
[1732930787346,0.59753239,96852.0,96851.0,0.0027294]
[1732930789034,0.50774258,96852.0,96851.0,0.0027294]
[1732930790396,0.49774258,96852.0,96851.0,0.0027294]
[1732930790603,0.32691705,96852.0,96851.0,0.0027294]
[1732930791432,0.32691705,96852.0,96851.0,0.02115836]
[1732930791810,0.46891705,96852.0,96851.0,0.02015836]
[1732930792193,0.47491705,96852.0,96851.0,0.02115836]
[1732930792418,0.46891705,96852.0,96851.0,0.02015836]
[1732930792859,0.47291705,96852.0,96851.0,0.02015836]
[1732930793312,0.32291705,96852.0,96851.0,0.02015836]
[1732930793565,0.21607184,96852.0,96851.0,0.02015836]
[1732930793765,0.21907184,96852.0,96851.0,0.02015836]
[1732930794212,0.21607184,96852.0,96851.0,0.02015836]
[1732930794414,0.21607184,96852.0,96851.0,0.04965159]
[1732930794710,0.21807184,96852.0,96851.0,0.04965159]
[1732930794925,7.407e-05,96863.0,96857.0,0.206489]
[1732930795138,0.00498314,96852.0,96851.0,0.16092263]
[1732930795318,0.20648,96862.0,96858.0,0.05529065]
[1732930795516,0.103242,96859.0,96853.0,0.02949063]
[1732930795758,7.407e-05,96863.0,96854.0,0.08480424]
[1732930795963,0.206481,96861.0,96855.0,0.04793275]
[1732930796216,0.103246,96856.0,96855.0,0.01843564]
[1732930796422,0.10325,96852.0,96851.0,0.1334294]
[1732930796626,0.00228443,96855.0,96851.0,0.1683136]
[1732930796849,0.10325,96852.0,96851.0,0.1683136]
[1732930797055,0.41298,96852.0,96851.0,0.21626568]
[1732930797262,0.41298,96852.0,96851.0,0.149872]
[1732930797477,0.41298,96852.0,96851.0,0.08656665]
[1732930798071,0.41298,96852.0,96851.0,0.0496808]
[1732930798478,0.41298,96852.0,96851.0,0.09158762]
[1732930798678,0.41398,96852.0,96851.0,0.09958762]
[1732930798891,0.41298,96852.0,96851.0,0.09158762]
[1732930799104,0.41298,96852.0,96851.0,0.08658762]
[1732930799326,0.41298,96852.0,96851.0,0.08958762]
[1732930799673,0.41298,96852.0,96851.0,0.089665]
[1732930800307,0.41298,96852.0,96851.0,0.091665]
[1732930801383,0.41298,96852.0,96851.0,0.09170134]
[1732930801607,0.41298,96852.0,96851.0,0.05473639]
[1732930802303,0.41799889,96852.0,96851.0,0.05473639]
[1732930802965,0.5208441,96852.0,96851.0,0.05473639]
[1732930804710,0.5208441,96852.0,96851.0,0.0917797]
[1732930804917,0.5208441,96852.0,96851.0,0.0867797]
[1732930805346,0.5248441,96852.0,96851.0,0.04991295]
[1732930805560,0.5248441,96852.0,96851.0,0.08697737]
[1732930809296,0.6748441,96852.0,96851.0,0.08697737]
[1732930809512,0.6948441,96852.0,96851.0,0.08697737]
[1732930809742,0.7738441,96852.0,96851.0,0.08697737]
[1732930810176,0.7738441,96852.0,96851.0,0.04991295]
[1732930812619,0.02,96842.0,96841.0,4.5e-07]
[1732930812789,0.68583521,96842.0,96841.0,4.5e-07]
[1732930813037,0.273265,96838.0,96837.0,0.0017298]
[1732930813254,0.37611021,96838.0,96837.0,0.0017298]
[1732930813461,0.68584021,96838.0,96837.0,0.0017298]
[1732930813670,0.69074375,96838.0,96837.0,0.0017298]
[1732930813897,0.70164966,96838.0,96837.0,0.0017298]
[1732930814518,0.70364966,96838.0,96837.0,0.0017298]
[1732930815187,0.71264966,96838.0,96837.0,0.0027298]
[1732930817632,0.79164966,96838.0,96837.0,0.0027298]
[1732930822683,0.79164966,96838.0,96837.0,0.03221632]
[1732930824563,0.79164966,96838.0,96837.0,0.02115454]
[1732930828202,0.79164966,96838.0,96837.0,0.05065921]
[1732930828406,0.79164966,96838.0,96837.0,0.02115454]
[1732930829244,0.79164966,96838.0,96837.0,0.02117266]
[1732930831621,0.70264966,96838.0,96837.0,0.02117266]
[1732930832259,0.71264966,96838.0,96837.0,0.02117266]
[1732930833532,0.71264966,96838.0,96837.0,0.0027298]
[1732930840108,0.91718112,96838.0,96837.0,8e-07]
[1732930840358,0.273282,96822.0,96821.0,0.00173]
[1732930840601,0.02,96818.0,96817.0,6e-07]
[1732930840834,0.71114713,96818.0,96817.0,6e-07]
[1732930841041,0.71363682,96818.0,96817.0,6e-07]
[1732930841740,0.71363682,96818.0,96817.0,0.00059986]
[1732930841961,0.81646828,96818.0,96817.0,0.00059986]
[1732930843134,0.81946828,96818.0,96817.0,0.00059986]
[1732930843372,0.82846828,96818.0,96817.0,0.00059986]
[1732930843824,0.81946828,96818.0,96817.0,0.00059986]
[1732930844045,0.82846828,96818.0,96817.0,8.6e-07]
[1732930844523,0.82846828,96818.0,96817.0,0.00086696]
[1732930845326,0.83964855,96818.0,96817.0,0.00086696]
[1732930847167,0.83964855,96818.0,96817.0,9.6e-07]
[1732930849424,0.71381709,96818.0,96817.0,9.6e-07]
[1732930849836,0.73681709,96818.0,96817.0,9.6e-07]
[1732930850254,0.12329,96814.0,96813.0,5.6e-07]
[1732930850460,0.296292,96812.0,96811.0,3.6e-07]
[1732930850593,0.81169867,96812.0,96811.0,2.5e-07]
[1732930850802,0.81169867,96812.0,96789.0,0.001917]
[1732930850803,0.273298,96807.0,96806.0,5e-08]
[1732930851023,0.70887321,96807.0,96806.0,8.6e-07]
[1732930851224,0.81642133,96807.0,96806.0,8.6e-07]
[1732930852095,0.82342133,96807.0,96806.0,8.6e-07]
[1732930853511,0.83242133,96807.0,96806.0,8.6e-07]
[1732930854152,0.85307173,96807.0,96806.0,8.6e-07]
[1732930854981,0.99106589,96807.0,96806.0,8.6e-07]
[1732930855201,0.94506916,96807.0,96806.0,8.6e-07]
[1732930855431,0.88395978,96807.0,96806.0,8.6e-07]
[1732930855633,0.89514336,96807.0,96806.0,8.6e-07]
[1732930856063,0.123313,96793.0,96789.0,0.001917]
[1732930856275,0.68817457,96793.0,96789.0,0.001917]
[1732930856496,0.69057988,96793.0,96789.0,0.001917]
[1732930857548,0.69257988,96793.0,96789.0,0.001917]
[1732930857996,0.69857988,96793.0,96789.0,0.001917]
[1732930860226,0.71439601,96793.0,96789.0,0.001917]
[1732930861393,0.73739601,96793.0,96789.0,0.001917]
[1732930861772,0.72157988,96793.0,96789.0,0.001917]
[1732930861983,0.69857988,96793.0,96789.0,0.001917]
[1732930862195,0.70949952,96793.0,96789.0,0.001917]
[1732930863492,0.69949952,96793.0,96789.0,0.001917]
[1732930863701,0.70949952,96793.0,96789.0,0.001917]
[1732930863910,0.69949952,96793.0,96789.0,0.001917]
[1732930864116,0.70949952,96793.0,96789.0,0.001917]
[1732930864538,0.10333,96777.0,96776.0,0.07853963]
[1732930864762,0.10837915,96777.0,96776.0,0.16316311]
[1732930864964,0.10837915,96777.0,96776.0,0.16217141]
[1732930865912,0.10837915,96777.0,96776.0,0.16417141]
[1732930868406,0.00504915,96777.0,96776.0,0.21077141]
[1732930868633,0.103329,96778.0,96776.0,0.21163681]
[1732930868855,0.103329,96778.0,96777.0,0.20974397]
[1732930870205,0.103329,96778.0,96777.0,0.23910883]
[1732930870864,0.103329,96778.0,96777.0,0.20974397]
[1732930871779,0.103329,96778.0,96777.0,0.21174397]
[1732930872464,0.103329,96778.0,96777.0,0.21199762]
[1732930873088,0.103328,96779.0,96778.0,0.0787]
[1732930873301,0.103328,96779.0,96778.0,0.20999762]
[1732930874428,0.103328,96779.0,96778.0,0.21099762]
[1732930879316,0.103328,96779.0,96778.0,0.2111035]
[1732930879532,0.103328,96779.0,96778.0,0.2111038]
[1732930879735,0.103328,96779.0,96778.0,0.21110397]
[1732930879950,0.103328,96779.0,96778.0,0.24060126]
[1732930880255,0.103328,96779.0,96778.0,0.21196967]
[1732930881307,0.20617321,96779.0,96778.0,0.24147966]
[1732930881516,0.21353003,96779.0,96778.0,0.11617966]
[1732930881926,0.21353003,96779.0,96778.0,0.08666967]
[1732930882793,0.21353003,96779.0,96778.0,0.0018657]
[1732930883004,0.21353003,96779.0,96778.0,0.08670794]
[1732930883427,0.21124382,96779.0,96778.0,0.08670794]
[1732930884072,0.10839861,96779.0,96778.0,0.08670794]
[1732930884298,0.10839861,96779.0,96778.0,0.23901854]
[1732930886033,0.10839861,96779.0,96778.0,0.20950794]
[1732930886264,0.10839861,96779.0,96778.0,0.20950975]
[1732930886685,0.10839861,96779.0,96778.0,0.08670975]
[1732930886913,0.11068489,96779.0,96778.0,0.08670975]